fUST/lending_fUST_20250225
["ID","MTS","AMOUNT","RATE_DAILY","PERIOD"]
[354372134,1740458062497,-150.0,0.000161,6]
[354372136,1740458841124,-1055.2515768,0.000251,2]
[354372137,1740458841147,-655.17296601,0.000252,20]
[354372138,1740458841182,-10121.31502416,0.0003529,60]
[354372370,1740459037858,-200.0,0.0003,30]
[354372371,1740459037868,-857.26833158,0.0003319,2]
[354372372,1740459037878,-400.0,0.00035289,2]
[354372373,1740459037888,-5554.21191455,0.0003529,60]
[354372374,1740459037901,-30.12921713,0.0003529,60]
[354372375,1740459037911,-2729.52805345,0.00037726,107]
[354372376,1740459037920,-560.0,0.00037826,2]
[354372377,1740459037930,-6006.75348801,0.000379,8]
[354372379,1740459040127,-223.01459154,0.000379,8]
[354372380,1740459040138,-857.26833158,0.0003819,2]
[354372381,1740459040148,-783.0,0.00040546,5]
[354372382,1740459040158,-857.26833158,0.0004319,2]
[354372383,1740459040167,-1097.0,0.00043461,5]
[354372384,1740459040177,-1121.0,0.00046586,5]
[354372385,1740459040187,-161.6825695,0.00046708,2]
[354372386,1740459040197,-167.53695625,0.00046793,28]
[354372387,1740459040207,-10000.0,0.00046892,2]
[354372388,1740459040216,-3120.30839277,0.00046892,2]
[354372397,1740459044201,-2300.0,0.00046892,2]
[354372411,1740460033119,-300.0,0.00029999,2]
[354372412,1740460033142,-453.984,0.0003,20]
[354372413,1740460034082,-3266.016,0.0003,20]
[354372414,1740460034104,-3716.0,0.0003,20]
[354372415,1740460034126,-1789.30731136,0.0003,20]
[354372416,1740460218303,3654.68086233,0.00035118,60]
[354372471,1740460232427,-300.0,0.00029899,2]
[354372472,1740460232439,-12591.56651844,0.000299,60]
[354372473,1740460232450,-1926.69268864,0.0003,20]
[354372474,1740460232461,-3716.0,0.0003,20]
[354372475,1740460232471,-3716.0,0.0003,20]
[354372476,1740460232482,-3716.0,0.0003,20]
[354372477,1740460232491,-2817.75611455,0.0003,7]
[354372478,1740460232503,-3270.24388545,0.0003,7]
[354372479,1740460232514,-174.17096562,0.00030646,2]
[354372480,1740460232523,-8790.24730338,0.00030746,2]
[354372502,1740460238132,-3815.36511288,0.00030746,2]
[354372503,1740460238144,-8610.10138588,0.00030746,2]
[354372504,1740460238213,-3684.28619786,0.00030746,2]
[354372505,1740460238228,-611.1224101,0.00031391,2]
[354372506,1740460238238,-260.50071015,0.00032418,2]
[354372507,1740460238251,-561.57797131,0.00032418,2]
[354372508,1740460238261,-854.11,0.00033915,5]
[354372509,1740460238270,-206.7913398,0.00040841,2]
[354372510,1740460238280,-731.2769659,0.00041101,2]
[354372511,1740460238290,-160.0,0.00042713,2]
[354372512,1740460238301,-182.507023,0.00042823,2]
[354372513,1740460238312,-250.0,0.00042881,2]
[354372514,1740460238321,-196.1138633,0.00043463,2]
[354372515,1740460238331,-164.7552086,0.00045979,2]
[354372517,1740460238341,-609.28093247,0.00046,120]
[354372518,1740460238350,-3795.53409336,0.00046791,2]
[354372519,1740460238360,-1003.39,0.000468,120]
[354372520,1740460238370,-154.2877974,0.00046864,2]
[354372521,1740460238380,-179.02,0.00046883,30]
[354372522,1740460238389,-150.0,0.00046892,2]
[354372523,1740460238399,-182.507023,0.00049247,2]
[354372524,1740460238408,-154.2,0.00052589,30]
[354372525,1740460238418,-500.0,0.00054899,120]
[354372526,1740460238430,-500.0,0.00054899,120]
[354372527,1740460238440,-505.42859201,0.00054899,120]
[354372528,1740460238449,-500.0,0.00054899,120]
[354372529,1740460238459,-150.0,0.000556,2]
[354372530,1740460238469,-250.99,0.000584,7]
[354372531,1740460238479,-168.0,0.0006,120]
[354372532,1740460238489,-500.0,0.00060273,120]
[354372533,1740460238499,-500.0,0.00060821,120]
[354372534,1740460238508,-209.16,0.000613,14]
[354372535,1740460238518,-500.0,0.00061369,120]
[354372536,1740460238529,-500.0,0.00061917,120]
[354372537,1740460238539,-500.0,0.00062465,120]
[354372538,1740460238549,-500.0,0.00063013,120]
[354372539,1740460238558,-500.0,0.00063561,120]
[354372540,1740460238567,-500.0,0.00064109,120]
[354372541,1740460238577,-500.0,0.00064657,120]
[354372542,1740460238588,-500.0,0.00065205,120]
[354372543,1740460238609,-500.0,0.00065753,120]
[354372544,1740460238626,-500.0,0.00066301,120]
[354372545,1740460238640,-500.0,0.00066849,120]
[354372546,1740460238657,-172.0,0.00067397,120]
[354372547,1740460238675,-226.49,0.000681,30]
[354372548,1740460238692,-433.89,0.00068483,10]
[354372549,1740460238710,-361.57,0.00068483,10]
[354372550,1740460238725,-301.31,0.00068483,10]
[354372551,1740460238740,-251.09,0.00068483,10]
[354372552,1740460238755,-501.42897419,0.00068483,10]
[354372553,1740460238770,-502.71811319,0.00068493,120]
[354372554,1740460238785,-1643.46,0.00068493,120]
[354372555,1740460238797,-513.11712524,0.00068493,120]
[354372556,1740460238813,-533.61347,0.00068493,120]
[354372557,1740460238828,-500.0,0.00068493,120]
[354372558,1740460238849,-502.99126634,0.00068493,120]
[354372559,1740460238867,-503.17401817,0.00068493,120]
[354372560,1740460238886,-500.0,0.00068493,120]
[354372561,1740460238899,-500.0,0.00068493,120]
[354372562,1740460238911,-439.99659977,0.00068493,120]
[354372563,1740460238925,-500.0,0.00068493,120]
[354372564,1740460238944,-500.0,0.00068493,120]
[354372565,1740460238957,-500.0,0.00068493,120]
[354372566,1740460238971,-500.0,0.00068493,30]
[354372567,1740460238986,-502.69990503,0.00068493,120]
[354372568,1740460238998,-500.0,0.00068493,120]
[354372569,1740460239011,-500.0,0.00068493,120]
[354372570,1740460239025,-500.0,0.00068493,120]
[354372571,1740460239038,-500.0,0.00068493,120]
[354372572,1740460239052,-500.0,0.00068493,120]
[354372573,1740460239065,-500.0,0.00068493,120]
[354372574,1740460239079,-500.74695924,0.00068493,120]
[354372575,1740460239094,-500.0,0.00068493,120]
[354372576,1740460239107,-501.58654272,0.00068493,120]
[354372577,1740460239120,-500.0,0.00068493,120]
[354372578,1740460239133,-500.0,0.00068493,120]
[354372579,1740460239146,-500.0,0.00068493,120]
[354372580,1740460239160,-500.0,0.00068493,30]
[354372581,1740460239175,-500.0,0.00068493,120]
[354372582,1740460239189,-1070.22,0.00068493,120]
[354372583,1740460239203,-500.0,0.00068493,120]
[354372584,1740460239219,-500.0,0.00068493,120]
[354372585,1740460239233,-500.0,0.00068493,120]
[354372586,1740460239247,-500.0,0.00068493,120]
[354372587,1740460239261,-453.90137469,0.00068493,120]
[354372588,1740460239275,-500.38948692,0.00068493,120]
[354372589,1740460239290,-500.96077378,0.00068493,120]
[354372590,1740460239304,-500.0,0.00068493,120]
[354372591,1740460239318,-613.4761521,0.00068493,120]
[354372592,1740460239332,-500.0,0.00068493,120]
[354372593,1740460239345,-500.0,0.00068493,120]
[354372594,1740460239355,-1396.34,0.00068493,120]
[354372595,1740460239499,-500.0,0.00068493,120]
[354372596,1740460239521,-500.0,0.00068493,120]
[354372597,1740460239531,-500.0,0.00068493,120]
[354372598,1740460239541,-500.0,0.00068493,120]
[354372599,1740460239552,-500.0,0.00068493,120]
[354372600,1740460239562,-455.09280904,0.00068493,120]
[354372601,1740460239572,-502.3457061,0.00068493,30]
[354372602,1740460239582,-1276.88,0.00068493,120]
[354372603,1740460239592,-501.49085734,0.00068493,120]
[354372604,1740460239602,-502.09813317,0.00068493,120]
[354372605,1740460239612,-504.25318967,0.00068493,120]
[354372606,1740460239623,-500.0,0.00068493,120]
[354372607,1740460239633,-502.98553434,0.00068493,120]
[354372608,1740460239643,-502.00388071,0.00068493,120]
[354372609,1740460239653,-1568.39,0.00068493,120]
[354372610,1740460239663,-500.0,0.00068493,120]
[354372611,1740460239673,-500.0,0.00068493,120]
[354372612,1740460239683,-221.87435926,0.00068493,120]
[354372613,1740460239694,-500.0,0.00068493,120]
[354372614,1740460239705,-500.0,0.00068493,120]
[354372615,1740460239715,-501.51615591,0.00068493,120]
[354372616,1740460239726,-503.75444132,0.00068493,120]
[354372617,1740460239736,-500.0,0.00068493,120]
[354372618,1740460239746,-500.0,0.00068493,120]
[354372619,1740460239755,-500.0,0.00068493,120]
[354372620,1740460239765,-500.0,0.00068493,120]
[354372621,1740460239774,-3859.6,0.00068493,120]
[354372622,1740460239784,-502.45755244,0.00068493,120]
[354372623,1740460239793,-500.0,0.00068493,120]
[354372624,1740460239802,-500.0,0.00068493,120]
[354372625,1740460239812,-500.0,0.00068493,120]
[354372626,1740460239821,-500.0,0.00068493,120]
[354372627,1740460239830,-500.0,0.00068493,120]
[354372628,1740460239840,-500.0,0.00068493,120]
[354372629,1740460239849,-500.0,0.00068493,120]
[354372630,1740460239858,-530.94527689,0.00068493,120]
[354372631,1740460239868,-250.0,0.00068493,120]
[354372632,1740460239877,-500.0,0.00068493,120]
[354372633,1740460239887,-500.0,0.00068493,120]
[354372634,1740460239896,-575.48,0.00068493,120]
[354372635,1740460239905,-500.0,0.00068493,120]
[354372636,1740460239915,-1446.1,0.00068493,120]
[354372637,1740460239926,-500.0,0.00068493,120]
[354372638,1740460239936,-515.318149,0.00068493,120]
[354372639,1740460239945,-500.0,0.00068493,120]
[354372640,1740460239956,-500.0,0.00068493,120]
[354372641,1740460239967,-500.0,0.00068493,120]
[354372642,1740460239977,-500.0,0.00068493,120]
[354372643,1740460239986,-500.0,0.00068493,120]
[354372644,1740460239996,-500.0,0.00068493,120]
[354372645,1740460240006,-500.0,0.00068493,120]
[354372646,1740460240016,-500.0,0.00068493,120]
[354372647,1740460240025,-500.0,0.00068493,120]
[354372648,1740460240036,-500.0,0.00068493,120]
[354372649,1740460240045,-431.88388573,0.00068493,120]
[354372650,1740460240055,-500.0,0.00068493,120]
[354372651,1740460240065,-915.68,0.00068493,3]
[354372652,1740460240075,-501.5698004,0.00068493,120]
[354372653,1740460240085,-500.0,0.00068493,120]
[354372654,1740460240095,-500.0,0.00068493,120]
[354372655,1740460240104,-568.46,0.00068493,120]
[354372656,1740460240114,-500.0,0.00068493,120]
[354372657,1740460240124,-186.79683411,0.00068493,120]
[354372658,1740460240133,-500.0,0.00068493,120]
[354372659,1740460240143,-1101.61,0.00068493,120]
[354372660,1740460240152,-500.0,0.00068493,120]
[354372661,1740460240162,-2083.29,0.00068493,120]
[354372662,1740460240174,-500.0,0.00068493,120]
[354372663,1740460240184,-502.15026753,0.00068493,120]
[354372664,1740460240194,-504.77649228,0.00068493,120]
[354372665,1740460240204,-500.0,0.00068493,120]
[354372667,1740460240218,-500.0,0.00068493,120]
[354372669,1740460240228,-500.0,0.00068493,120]
[354372670,1740460240238,-501.22908663,0.00068493,120]
[354372671,1740460240248,-501.0893835,0.00068493,120]
[354372672,1740460240259,-738.41,0.00068493,120]
[354372673,1740460240269,-500.0,0.00068493,120]
[354372674,1740460240278,-500.0,0.00068493,120]
[354372675,1740460240289,-6822.91,0.00068493,120]
[354372676,1740460240300,-500.0,0.00068493,120]
[354372678,1740460240309,-503.46882561,0.00068493,120]
[354372679,1740460240319,-504.04299078,0.00068493,120]
[354372680,1740460240329,-500.0,0.00068493,120]
[354372681,1740460240338,-500.0,0.00068493,120]
[354372682,1740460240348,-500.0,0.00068493,120]
[354372683,1740460240357,-500.0,0.00068493,120]
[354372684,1740460240367,-500.0,0.00068493,120]
[354372685,1740460240376,-502.28870121,0.00068493,120]
[354372686,1740460240386,-233.02848217,0.00068493,120]
[354372687,1740460240395,-106170.42,0.00068493,7]
[354372688,1740460240405,-228.57641041,0.00068493,120]
[354372689,1740460240415,-500.0,0.00068493,120]
[354372690,1740460240427,-500.0,0.00068493,120]
[354372691,1740460240437,-503.51991988,0.00068493,120]
[354372692,1740460240446,-500.0,0.00068493,120]
[354372693,1740460240457,-504.09725054,0.00068493,120]
[354372694,1740460240467,-500.0,0.000685,15]
[354372695,1740460240477,-500.5331041,0.000685,15]
[354372696,1740460240487,-500.0,0.000685,15]
[354372697,1740460240497,-1000.0,0.00069048,15]
[354372698,1740460240507,-526.09062785,0.00069048,15]
[354372699,1740460240516,-1500.0,0.0007005,15]
[354372700,1740460240526,-456.12819766,0.00071347,15]
[354372701,1740460240535,-18573.63471606,0.00072622,2]
[354372702,1740460240545,-5358.81365832,0.00072788,6]
[354372703,1740460240554,-491.0367585,0.000756,120]
[354372704,1740460240564,-1000.0,0.000758,120]
[354372705,1740460240574,-5358.81365832,0.0007599,6]
[354372706,1740460240583,-40000.0,0.00076,120]
[354372707,1740460240593,-19601.91606613,0.00076,120]
[354372708,1740460240603,-690.4053465,0.00076588,120]
[354372709,1740460240613,-10287.15707999,0.00076752,120]
[354372710,1740460240623,-3356.42147501,0.00076752,120]
[354372711,1740460240633,-1374.43132123,0.0007778,120]
[354372712,1740460240643,-1000.0,0.000778,120]
[354372713,1740460240652,-719202.05860931,0.0007787,120]
[354372714,1740460240667,-839.99999992,0.0007787,120]
[354372717,1740460240681,-4032.31907277,0.0007787,120]
[354372719,1740460240692,-14096.28335096,0.0007787,120]
[354372721,1740460240703,-1276.2813817,0.0007787,120]
[354372722,1740460240715,-82004.34130067,0.0007787,120]
[354372723,1740460240898,-500.0,0.00068493,120]
[354372724,1740460240908,-269.42311904,0.00068493,120]
[354372737,1740460243359,-230.57688096,0.00068493,120]
[354372739,1740460243369,-500.0,0.00068493,120]
[354372740,1740460243379,-500.0,0.00068493,30]
[354372743,1740460243480,-893.42311584,0.000778,120]
[354372744,1740460243494,-651.0,0.000778,120]
[354372745,1740460243506,-2552.8,0.000778,120]
[354372777,1740460246222,-501.58816451,0.00068493,120]
[354372779,1740460246232,-500.0,0.00068493,120]
[354372780,1740460246242,-6022.10914342,0.000689,17]
[354372782,1740460246254,-902.77688416,0.000778,120]
[354372783,1740460246263,-209.25,0.0007786,10]
[354372785,1740460246273,-204.27580731,0.0007787,120]
[354372787,1740460246285,-54543.4890241,0.0007787,120]
[354372789,1740460246299,-300.0,0.0007787,120]
[354372928,1740460356986,2000.0,0.00013785,2]
[354372930,1740461227147,-394.89325763,0.00029936,2]
[354372931,1740461227170,-200.0,0.0003,30]
[354372932,1740461227191,-358.07162211,0.00030238,2]
[354372933,1740461227214,-365.0,0.00030542,2]
[354372934,1740461227235,-2593.18265525,0.00030543,2]
[354372938,1740461320893,608.16228023,9e-05,2]
[354372983,1740461432448,-700.80351028,0.00017,2]
[354372984,1740461432459,-4926.19383775,0.0002258,60]
[354372985,1740461432468,-16658.165207,0.00023,2]
[354372986,1740461432478,-5821.37217205,0.000259,4]
[354372987,1740461432488,-3000.0,0.00026,30]
[354372988,1740461432497,-10073.25321476,0.00028343,51]
[354372989,1740461432507,-247.25817047,0.00028443,2]
[354372990,1740461432517,-22306.81734475,0.00030543,2]
[354372991,1740461432526,-10000.0,0.00032,30]
[354372992,1740461432536,-19601.91606613,0.00032,30]
[354372993,1740461432546,-247.25817047,0.00033443,2]
[354372994,1740461432555,-854.12,0.00033977,2]
[354372995,1740461432565,-9791.41267874,0.00035,30]
[354372996,1740461432581,-208.58732126,0.00035,30]
[354372997,1740461432591,-673.04272474,0.00035117,60]
[354373009,1740461438438,-9326.95727526,0.00035117,60]
[354373010,1740461438448,-3810.37232569,0.00035347,2]
[354373011,1740461438458,-1077.3973321,0.00035347,7]
[354373012,1740461438468,-251.76356742,0.00035347,7]
[354373013,1740461438477,-2995.39584544,0.00035347,7]
[354373014,1740461438487,-498.0,0.00035347,7]
[354373015,1740461438496,-28458.84611322,0.00035347,7]
[354373016,1740461438506,-11405.14692746,0.00035347,7]
[354373017,1740461438515,-3188.12035525,0.00035347,2]
[354373018,1740461438525,-6081.03771558,0.00035347,7]
[354373019,1740461438534,-247.25817047,0.00038443,2]
[354373020,1740461438544,-1000.0,0.00044896,30]
[354373021,1740461438553,-1000.0,0.00044896,30]
[354373022,1740461438563,-508.35596211,0.00044896,120]
[354373023,1740461438894,-9564.89725263,0.00044896,120]
[354373024,1740461438903,-9629.97879446,0.0005,30]
[354373025,1740461438913,-6000.0,0.0005,30]
[354373026,1740461438926,-14998.999999,0.00061,120]
[354373027,1740461438935,-10073.25321474,0.0006145,120]
[354373028,1740461438945,-1374.43132123,0.00068393,120]
[354373029,1740461438955,-157.96277265,0.00068393,2]
[354373030,1740461438965,-500.78494653,0.00068473,15]
[354373031,1740461438974,-500.0,0.00068473,2]
[354373032,1740461438985,-174.37,0.0006848,10]
[354373033,1740461438995,-40501.6760578,0.00068483,6]
[354373034,1740461439005,-201.61534796,0.00068483,6]
[354373035,1740461439015,-35438.9665506,0.0006849,6]
[354373036,1740461439025,-178.93240822,0.00068492,31]
[354373037,1740461439035,-151.15,0.00068493,30]
[354373038,1740461439044,-500.0,0.00068493,30]
[354373039,1740461439054,-500.0,0.00068493,30]
[354373040,1740461439063,-500.0,0.00068493,120]
[354373041,1740461439073,-500.0,0.00068493,120]
[354373042,1740461439083,-501.30971949,0.00068493,120]
[354373043,1740461439093,-500.0,0.00068493,120]
[354373044,1740461439102,-500.0,0.00068493,120]
[354373045,1740461439111,-536.05514205,0.00068493,120]
[354373046,1740461439121,-276.78613901,0.00068493,120]
[354373047,1740461439131,-500.0,0.00068493,120]
[354373048,1740461439140,-500.0,0.00068493,120]
[354373049,1740461439149,-1002.94095412,0.00068493,120]
[354373050,1740461439159,-502.26493188,0.00068493,120]
[354373051,1740461439170,-500.81175504,0.00068493,120]
[354373052,1740461439180,-501.00838136,0.00068493,120]
[354373053,1740461439190,-500.0,0.00068493,120]
[354373054,1740461439199,-505.2503811,0.00068493,120]
[354373055,1740461439209,-501.02916718,0.00068493,120]
[354373056,1740461439219,-500.8414793,0.00068493,2]
[354373057,1740461439229,-500.0,0.00068493,120]
[354373058,1740461439239,-500.0,0.00068493,120]
[354373059,1740461439248,-500.0,0.00068493,120]
[354373060,1740461439258,-500.0,0.00068493,120]
[354373061,1740461439268,-504.68002688,0.00068493,120]
[354373062,1740461439278,-501.43243371,0.00068493,120]
[354373063,1740461439287,-500.0,0.00068493,120]
[354373064,1740461439297,-511.33354085,0.00068493,120]
[354373065,1740461439306,-502.70707108,0.00068493,120]
[354373066,1740461439316,-427.76465928,0.00068493,120]
[354373067,1740461439325,-502.08308583,0.00068493,120]
[354373068,1740461439335,-500.0,0.00068493,120]
[354373069,1740461439345,-500.9270198,0.00068493,120]
[354373070,1740461439354,-500.0,0.00068493,120]
[354373071,1740461439364,-500.0,0.00068493,2]
[354373072,1740461439374,-500.0,0.00068493,120]
[354373073,1740461439383,-500.0,0.00068493,120]
[354373074,1740461439392,-732.01,0.00068493,120]
[354373075,1740461439402,-501.24265474,0.00068493,120]
[354373076,1740461439412,-500.0,0.00068493,120]
[354373077,1740461439423,-501.57979701,0.00068493,120]
[354373078,1740461439433,-158.42710047,0.00068493,120]
[354373079,1740461439442,-502.72845864,0.00068493,120]
[354373080,1740461439452,-503.15518906,0.00068493,120]
[354373081,1740461439461,-501.63477957,0.00068493,120]
[354373082,1740461439471,-500.0,0.00068493,120]
[354373083,1740461439480,-501.07817939,0.00068493,120]
[354373084,1740461439489,-501.40531309,0.00068493,120]
[354373085,1740461439499,-500.0,0.00068493,120]
[354373086,1740461439508,-500.0,0.00068493,120]
[354373087,1740461439518,-500.0,0.00068493,120]
[354373088,1740461439527,-500.0,0.00068493,120]
[354373089,1740461439537,-500.0,0.00068493,120]
[354373090,1740461439547,-500.0,0.00068493,120]
[354373091,1740461439557,-502.03235506,0.00068493,120]
[354373092,1740461439567,-500.0,0.00068493,120]
[354373093,1740461439577,-500.0,0.00068493,120]
[354373094,1740461439587,-509.29427459,0.00068493,120]
[354373095,1740461439597,-500.0,0.00068493,120]
[354373096,1740461439607,-500.0,0.00068493,120]
[354373097,1740461439617,-500.0,0.00068493,120]
[354373098,1740461439627,-500.0,0.00068493,120]
[354373099,1740461439645,-504.04100349,0.00068493,120]
[354373100,1740461439658,-503.58824205,0.00068493,120]
[354373101,1740461439669,-503.40472036,0.00068493,120]
[354373102,1740461439679,-193.89388424,0.00068493,120]
[354373103,1740461439689,-501.81575575,0.00068493,120]
[354373104,1740461439699,-501.24476018,0.00068493,120]
[354373105,1740461439708,-500.0,0.00068493,120]
[354373106,1740461439719,-500.0,0.00068493,120]
[354373107,1740461439730,-500.0,0.00068493,120]
[354373108,1740461439739,-501.90571832,0.00068493,120]
[354373109,1740461439749,-500.0,0.00068493,120]
[354373110,1740461439759,-500.0,0.00068493,120]
[354373111,1740461439768,-500.0,0.00068493,120]
[354373112,1740461439778,-500.0,0.00068493,120]
[354373113,1740461439787,-500.0,0.00068493,120]
[354373114,1740461439797,-459.85319181,0.00068493,120]
[354373115,1740461439807,-500.0,0.00068493,120]
[354373116,1740461439817,-500.0,0.00068493,120]
[354373117,1740461439827,-500.0,0.00068493,120]
[354373118,1740461439837,-502.12579925,0.00068493,120]
[354373119,1740461439847,-325.54148079,0.00068493,120]
[354373120,1740461439857,-500.0,0.00068493,30]
[354373121,1740461439867,-500.0,0.00068493,120]
[354373122,1740461439876,-500.0,0.00068493,120]
[354373123,1740461439886,-502.52693057,0.00068493,120]
[354373124,1740461439897,-378.16495306,0.00068493,120]
[354373125,1740461439907,-501.69291288,0.00068493,120]
[354373126,1740461439919,-500.0,0.00068493,120]
[354373127,1740461440009,-501.56650604,0.00068493,120]
[354373129,1740461440020,-337.45087083,0.00068493,120]
[354373131,1740461440030,-501.76862802,0.00068493,120]
[354373132,1740461440039,-500.0,0.00068493,120]
[354373133,1740461440049,-502.66129797,0.00068493,120]
[354373134,1740461440059,-500.0,0.00068493,120]
[354373135,1740461440068,-199.138979,0.00068493,120]
[354373136,1740461440078,-500.0,0.00068493,120]
[354373137,1740461440087,-500.0,0.00068493,120]
[354373138,1740461440097,-500.0,0.00068493,120]
[354373139,1740461440106,-500.0,0.00068493,120]
[354373140,1740461440116,-500.0,0.00068493,120]
[354373141,1740461440126,-245.75534604,0.00068493,120]
[354373142,1740461440136,-500.92471358,0.00068493,120]
[354373143,1740461440145,-500.0,0.00068493,120]
[354373144,1740461440156,-500.0,0.00068493,120]
[354373145,1740461440167,-500.0,0.00068493,120]
[354373146,1740461440176,-500.0,0.00068493,120]
[354373147,1740461440186,-500.0,0.00068493,120]
[354373148,1740461440195,-503.11307915,0.00068493,120]
[354373149,1740461440204,-500.0,0.00068493,120]
[354373150,1740461440214,-504.54267838,0.00068493,120]
[354373151,1740461440224,-503.88055852,0.00068493,120]
[354373152,1740461440233,-500.0,0.00068493,120]
[354373153,1740461440243,-500.0,0.00068493,120]
[354373155,1740461440252,-514.61672996,0.00068493,120]
[354373156,1740461440262,-500.0,0.00068493,120]
[354373157,1740461440271,-3000.0,0.00068493,30]
[354373158,1740461440281,-500.0,0.00068493,120]
[354373159,1740461440290,-500.0,0.00068493,120]
[354373160,1740461440300,-500.0,0.00068493,120]
[354373161,1740461440309,-500.0,0.00068493,120]
[354373162,1740461440318,-499.78951145,0.00068493,120]
[354373163,1740461440328,-500.0,0.00068493,120]
[354373164,1740461440338,-500.0,0.00068493,120]
[354373165,1740461440348,-500.0,0.00068493,120]
[354373166,1740461440357,-504.37604494,0.00068493,120]
[354373167,1740461440367,-500.0,0.00068493,120]
[354373168,1740461440376,-500.0,0.00068493,120]
[354373169,1740461440386,-500.0,0.00068493,120]
[354373170,1740461440396,-558.9,0.00068493,120]
[354373171,1740461440405,-500.0,0.00068493,120]
[354373172,1740461440415,-600.0,0.00068493,120]
[354373174,1740461440426,-600.0,0.00068493,120]
[354373176,1740461440436,-600.0,0.00068493,120]
[354373177,1740461440445,-500.0,0.00068493,120]
[354373178,1740461440454,-501.75979597,0.00068493,120]
[354373179,1740461440464,-500.0,0.00068493,120]
[354373180,1740461440473,-500.0,0.00068493,120]
[354373181,1740461440483,-505.59477407,0.00068493,120]
[354373182,1740461440492,-500.0,0.00068493,120]
[354373183,1740461440502,-500.0,0.00068493,120]
[354373184,1740461440512,-525.1424798,0.00068493,120]
[354373185,1740461440523,-500.0,0.00068493,120]
[354373186,1740461440533,-500.0,0.00068493,120]
[354373187,1740461440543,-503.92961097,0.00068493,120]
[354373188,1740461440552,-500.0,0.00068493,120]
[354373189,1740461440561,-500.0,0.00068493,120]
[354373190,1740461440571,-500.0,0.00068493,120]
[354373191,1740461440580,-500.0,0.00068493,120]
[354373192,1740461440590,-500.0,0.00068493,120]
[354373193,1740461440599,-500.0,0.00068493,120]
[354373194,1740461440609,-502.45318541,0.00068493,120]
[354373195,1740461440619,-500.0,0.00068493,120]
[354373196,1740461440628,-500.0,0.00068493,120]
[354373197,1740461440643,-277.51613697,0.00068493,120]
[354373198,1740461440653,-500.0,0.00068493,120]
[354373199,1740461440662,-500.0,0.00068493,120]
[354373201,1740461440673,-500.0,0.00068493,120]
[354373203,1740461440684,-500.0,0.00068493,120]
[354373205,1740461440693,-500.0,0.00068493,120]
[354373207,1740461440703,-500.0,0.00068493,120]
[354373208,1740461440714,-195.06053086,0.00068493,120]
[354373209,1740461440723,-500.91038201,0.00068493,120]
[354373210,1740461440733,-504.04913837,0.00068493,120]
[354373211,1740461440742,-500.0,0.00068493,120]
[354373212,1740461440751,-500.0,0.00068493,120]
[354373213,1740461440761,-500.0,0.00068493,120]
[354373214,1740461440771,-500.0,0.00068493,120]
[354373215,1740461440781,-500.0,0.00068493,120]
[354373216,1740461440791,-500.0,0.00068493,120]
[354373217,1740461440800,-500.0,0.00068493,120]
[354373218,1740461440810,-500.0,0.00068493,120]
[354373219,1740461440819,-500.0,0.00068493,120]
[354373220,1740461440829,-503.26141904,0.00068493,120]
[354373221,1740461440838,-500.0,0.00068493,120]
[354373222,1740461440848,-500.0,0.00068493,120]
[354373223,1740461440857,-513.81905637,0.00068493,120]
[354373224,1740461440866,-500.0,0.00068493,120]
[354373225,1740461440876,-503.13241147,0.00068493,120]
[354373226,1740461440886,-500.0,0.00068493,120]
[354373227,1740461440897,-500.0,0.00068493,120]